bitfinex/quotes_ETHUSD_20251120
["timestamp","ask_amount","ask_price","bid_price","bid_amount"]
[1763681822986,0.4634,2855.3,2853.3,0.001]
[1763681823214,0.4634,2855.3,2853.4,0.888204]
[1763681823700,0.4634,2855.3,2853.6,0.405504]
[1763681824102,0.1983,2855.4,2853.3,0.90799264]
[1763681824103,0.1983,2855.4,2853.8,1.31249664]
[1763681824302,0.1983,2855.4,2854.0,0.405504]
[1763681824706,0.1983,2855.4,2853.9,0.4827]
[1763681824707,0.002,2855.4,2854.7,6.10499346]
[1763681825012,0.002,2855.4,2855.3,0.6324]
[1763681825735,0.002,2855.4,2855.3,1.1151]
[1763681826928,0.002,2855.4,2854.6,0.144]
[1763681827084,0.002,2855.4,2854.7,0.4827]
[1763681827505,0.4654,2855.4,2854.1,0.144]
[1763681827682,0.4654,2855.4,2854.2,0.4827]
[1763681828521,0.4654,2855.4,2854.3,0.4502]
[1763681829327,0.4654,2855.4,2854.1,0.144]
[1763681829771,4.85252,2855.2,2853.3,0.001]
[1763681830034,0.90699264,2855.3,2853.3,0.4512]
[1763681830035,0.1808,2854.2,2853.3,0.4512]
[1763681830330,0.1808,2854.2,2853.3,0.001]
[1763681831132,0.4793,2854.1,2853.3,0.001]
[1763681831331,0.1808,2853.4,2853.3,0.001]
[1763681831685,0.4793,2853.7,2853.3,0.001]
[1763681831987,0.6601,2854.2,2853.3,0.001]
[1763681832297,0.1808,2854.2,2853.3,0.001]
[1763681832497,0.4793,2854.6,2853.3,0.001]
[1763681832701,0.4793,2854.6,2853.3,0.4512]
[1763681833097,0.4793,2854.6,2853.3,0.001]
[1763681833689,0.79845914,2854.6,2853.3,0.001]
[1763681833885,0.31915914,2854.5,2853.3,0.001]
[1763681834090,0.1808,2855.0,2853.3,0.4512]
[1763681834301,0.4793,2854.5,2853.3,0.001]
[1763681834819,0.31903241,2854.8,2853.3,0.001]
[1763681834820,4.728261,2854.6,2853.4,6.10499346]
[1763681835020,0.4793,2854.5,2853.3,0.001]
[1763681835226,0.405504,2854.4,2853.3,0.001]
[1763681835424,0.1808,2853.4,2853.3,0.001]
[1763681835719,0.405504,2854.7,2853.3,0.001]
[1763681835720,0.79812114,2854.4,2853.3,0.001]
[1763681836027,0.31882114,2854.3,2853.3,0.001]
[1763681836213,0.1808,2853.4,2853.3,0.001]
[1763681836598,4.913876,2853.4,2852.0,0.144]
[1763681836915,4.913876,2853.4,2851.7,0.18262968]
[1763681836916,0.8096814,2853.3,2853.0,0.001]
[1763681837121,0.90699264,2853.1,2853.0,0.001]
[1763681837360,0.90699264,2853.1,2851.0,0.0052615]
[1763681837361,0.90699264,2852.6,2851.0,0.0052615]
[1763681837559,0.405504,2852.4,2851.0,0.0052615]
[1763681837734,2.74819,2852.1,2851.0,0.0052615]
[1763681838066,0.1808,2851.1,2849.3,0.1467]
[1763681838367,0.90699264,2850.9,2849.3,0.1467]
[1763681838600,0.4793,2851.0,2849.7,6.46154966]
[1763681838766,0.1808,2851.1,2849.8,0.4502]
[1763681838928,0.1808,2852.8,2849.8,0.4502]
[1763681838929,0.4793,2851.8,2850.1,0.405504]
[1763681839133,0.4793,2851.8,2849.8,0.4502]
[1763681839346,0.4793,2851.8,2849.9,0.4502]
[1763681839747,0.4793,2851.8,2849.9,1.35719264]
[1763681839942,0.4793,2851.8,2850.0,0.405504]
[1763681840172,0.4793,2851.8,2850.1,0.145]
[1763681840675,0.1808,2852.8,2850.1,0.145]
[1763681840676,0.4793,2852.4,2850.8,6.11921268]
[1763681840973,0.4793,2852.4,2850.9,1.35719264]
[1763681841130,0.4793,2851.9,2850.4,1.35719264]
[1763681841327,0.4793,2851.9,2850.4,0.4502]
[1763681841744,0.4793,2851.9,2850.1,0.145]
[1763681842773,0.4793,2852.3,2850.6,0.405504]
[1763681842930,0.1808,2852.8,2850.6,1.31249664]
[1763681843136,0.1808,2852.8,2850.7,0.4502]
[1763681843137,0.6601,2852.8,2850.7,0.4502]
[1763681843334,3.539596,2852.7,2850.7,0.4502]
[1763681843534,6.916018,2852.5,2850.7,0.4502]
[1763681843774,0.8992696,2852.6,2850.7,0.4502]
[1763681843976,0.4793,2852.5,2850.7,0.4502]
[1763681844565,0.4793,2852.5,2850.8,0.405504]
[1763681844952,0.4793,2852.5,2850.9,0.4502]
[1763681845962,4.384267,2852.4,2850.9,0.4502]
[1763681846167,4.384267,2852.4,2849.9,0.90699264]
[1763681846168,0.4793,2852.5,2850.6,0.4502]
[1763681846367,0.1808,2852.8,2850.7,0.405504]
[1763681846368,0.4793,2852.4,2850.7,0.405504]
[1763681846638,0.4793,2852.4,2850.2,0.405504]
[1763681846639,0.1808,2850.8,2848.0,0.145]
[1763681846864,0.1808,2850.8,2849.1,7.55678123]
[1763681847261,0.1808,2850.8,2849.2,1.35719264]
[1763681847465,0.1808,2851.2,2849.7,0.90699264]
[1763681847685,0.1808,2851.2,2849.8,0.4502]
[1763681847976,0.4793,2851.1,2849.8,0.4502]
[1763681848982,0.1808,2851.2,2849.8,0.4502]
[1763681849775,0.6601,2851.2,2849.8,0.4502]
[1763681850589,0.4793,2851.1,2849.8,0.4502]
[1763681851350,0.4793,2851.1,2849.1,0.1458]
[1763681851351,0.4793,2851.1,2849.3,0.4829]
[1763681851960,0.4793,2851.1,2849.1,0.1458]
[1763681852162,0.90699264,2850.9,2849.1,0.1458]
[1763681852414,0.90699264,2850.9,2846.8,0.05]
[1763681852415,0.405504,2850.7,2848.4,0.4829]
[1763681852576,1.31249664,2850.5,2848.1,0.4829]
[1763681852786,0.405504,2850.3,2848.1,0.4829]
[1763681853071,0.90699264,2850.8,2848.1,0.4829]
[1763681853072,0.405504,2850.4,2848.1,0.4829]
[1763681853274,7.41098123,2849.8,2847.1,0.4829]
[1763681853498,0.74109812,2849.7,2847.2,0.4829]
[1763681853665,0.6757,2850.0,2848.2,0.90699264]
[1763681854057,0.6757,2850.0,2848.4,0.405504]
[1763681854260,0.1848,2850.0,2848.4,0.001]
[1763681854478,0.6757,2850.3,2848.6,0.405504]
[1763681854679,0.4909,2850.2,2848.7,0.4829]
[1763681855189,0.1848,2850.3,2848.8,0.405504]
[1763681855389,0.6757,2850.3,2848.8,0.405504]
[1763681855557,0.6757,2850.3,2848.9,0.4829]
[1763681856172,0.1848,2850.3,2849.0,0.405504]
[1763681856509,0.4909,2850.2,2848.5,0.4829]
[1763681856875,2.705226,2850.1,2848.4,0.001]
[1763681857079,0.1848,2848.5,2848.4,0.001]
[1763681857494,0.6757,2848.5,2848.4,0.001]
[1763681857778,0.1848,2848.5,2848.4,0.001]
[1763681858305,0.1848,2849.0,2848.4,0.001]
[1763681858806,0.64,2849.0,2848.4,0.001]
[1763681859510,0.1848,2849.0,2848.4,0.001]
[1763681860513,0.4552,2848.9,2848.4,0.001]
[1763681862313,0.4552,2848.9,2847.2,0.1458]
[1763681862916,0.4552,2848.9,2847.3,0.4632]
[1763681863300,4.309064,2848.8,2846.8,0.00938436]
[1763681863505,12.62482,2848.6,2846.8,0.00938436]
[1763681863689,12.62482,2848.6,2845.6,0.1467]
[1763681863690,0.1823,2844.9,2842.8,0.1458]
[1763681863892,0.1823,2846.0,2844.1,0.1505]
[1763681864208,0.1823,2846.3,2844.3,7.41098123]
[1763681864389,0.1823,2846.3,2844.4,0.4632]
[1763681864787,0.6375,2846.3,2844.4,0.4632]
[1763681864988,0.6375,2846.3,2844.4,1.32019264]
[1763681865190,0.4552,2846.2,2844.4,0.3632]
[1763681865804,0.4552,2846.2,2844.1,0.1505]
[1763681867002,7.589636,2846.1,2844.1,0.1505]
[1763681867188,0.4552,2846.2,2843.2,0.609]
[1763681867189,0.405504,2845.7,2843.2,0.609]
[1763681867522,0.90699264,2845.6,2843.2,0.609]
[1763681867707,1.36219264,2845.5,2843.3,0.4632]
[1763681867908,0.22691853,2845.4,2843.3,0.4632]
[1763681868116,0.4552,2845.4,2843.3,0.4632]
[1763681869328,0.4552,2845.4,2842.9,7.41098123]
[1763681869329,6.545497,2845.1,2843.0,0.16017411]
[1763681869626,0.4552,2845.4,2843.1,0.4632]
[1763681869789,0.4552,2845.3,2843.1,0.4632]
[1763681869986,2.816,2845.2,2843.1,0.4632]
[1763681870203,0.32712,2845.1,2843.1,0.4632]
[1763681870402,0.90699264,2845.6,2843.1,0.4632]
[1763681870403,0.4552,2845.2,2843.1,0.4632]
[1763681870753,3.067155,2845.3,2843.1,0.4632]
[1763681870952,3.33514764,2845.3,2843.1,0.4632]
[1763681871090,1.31249664,2844.9,2843.0,0.125]
[1763681871304,0.405504,2844.7,2843.0,0.125]
[1763681871723,1.31249664,2844.3,2843.0,0.125]
[1763681871923,0.1823,2843.1,2843.0,0.125]
[1763681872140,0.6375,2844.2,2843.0,0.125]
[1763681872453,0.1823,2845.7,2843.4,0.90699264]
[1763681872605,0.1823,2845.1,2843.5,0.405504]
[1763681872813,0.1823,2845.7,2844.4,0.90699264]
[1763681873104,0.1823,2845.6,2843.9,0.90699264]
[1763681873308,0.1823,2845.6,2843.7,0.4632]
[1763681873625,0.1823,2845.6,2843.8,0.4632]
[1763681874207,0.4552,2845.5,2843.8,0.4632]
[1763681874828,0.4552,2845.5,2843.6,0.0982]
[1763681875060,0.4552,2845.5,2843.6,0.5614]
[1763681875544,0.1823,2845.6,2843.8,1.31249664]
[1763681875762,0.1823,2845.6,2844.0,0.405504]
[1763681876118,0.1823,2845.6,2844.2,0.405504]
[1763681876321,0.4552,2845.9,2844.2,0.405504]
[1763681876533,0.4552,2845.9,2844.4,0.90699264]
[1763681877018,0.4552,2845.9,2843.9,0.90699264]
[1763681877215,0.4552,2845.9,2844.0,0.4632]
[1763681877716,0.4552,2845.9,2843.4,0.90699264]
[1763681877943,0.4552,2845.9,2843.7,0.4632]
[1763681878151,2.88337,2845.8,2843.7,0.4632]
[1763681878469,0.4552,2845.9,2843.3,0.4632]
[1763681878470,5.218325,2845.5,2843.3,0.4632]
[1763681878751,2.087541,2845.3,2843.0,0.5892]
[1763681878960,1.31249664,2845.4,2843.0,0.5892]
[1763681878961,0.90699264,2845.0,2843.0,0.5892]
[1763681879113,0.42254936,2844.9,2843.0,0.126]
[1763681879317,0.4552,2845.3,2843.1,0.4632]
[1763681879630,0.4552,2845.2,2843.1,0.4632]
[1763681880623,2.548013,2845.1,2843.1,0.4632]
[1763681880824,0.3003213,2845.0,2843.1,0.4632]
[1763681881054,0.4552,2845.1,2843.1,0.4632]
[1763681881353,0.1823,2845.4,2843.5,0.90699264]
[1763681881354,0.4552,2845.3,2843.5,0.90699264]
[1763681881558,0.4552,2845.3,2843.6,0.5614]
[1763681881740,0.4552,2845.3,2843.6,1.46839264]
[1763681882119,0.4552,2845.3,2843.7,0.4632]
[1763681883283,0.4552,2845.9,2844.0,7.41098123]
[1763681883574,0.4552,2845.9,2844.1,0.90699264]
[1763681883944,4.932624,2845.8,2843.8,0.4632]
[1763681884151,0.4552,2845.9,2843.8,0.4632]
[1763681884152,0.5387824,2845.7,2843.8,0.4632]
[1763681884349,0.4552,2845.9,2844.2,0.405504]
[1763681884571,0.4552,2846.4,2844.2,0.405504]
[1763681884756,0.4552,2846.4,2844.3,0.4632]
[1763681884962,0.6375,2846.3,2844.3,0.4632]
[1763681885353,0.4552,2846.2,2844.3,0.4632]
[1763681885550,0.4552,2846.2,2844.4,0.405504]
[1763681885752,0.4552,2846.2,2844.4,0.4632]
[1763681887262,0.1823,2846.3,2844.5,0.405504]
[1763681887684,0.1823,2846.3,2844.6,0.4632]
[1763681888301,0.1823,2846.9,2845.3,7.41098123]
[1763681888659,0.1823,2846.9,2845.4,0.6172]
[1763681888895,0.6353,2846.9,2845.4,0.6172]
[1763681889197,0.6353,2846.9,2845.5,0.4928]
[1763681889356,7.59328123,2848.0,2845.5,0.4928]
[1763681889357,5.715574,2847.3,2845.5,0.4928]
[1763681889562,0.453,2847.4,2845.6,0.405504]
[1763681889760,0.453,2847.8,2845.9,1.31249664]
[1763681890185,0.453,2847.8,2846.0,0.4928]
[1763681890613,0.1823,2848.0,2846.5,0.90699264]
[1763681890818,0.453,2847.9,2846.1,0.1458]
[1763681891183,3.304652,2847.8,2846.1,0.1458]
[1763681891384,4.206062,2847.6,2845.4,0.1244]
[1763681891616,0.90699264,2847.3,2845.4,0.1244]
[1763681891817,8.31797387,2847.9,2845.5,1.7928]
[1763681891818,0.1948,2847.9,2845.5,1.7928]
[1763681892119,0.1948,2847.9,2846.4,7.41098123]
[1763681892290,0.453,2848.1,2846.6,0.405504]
[1763681892487,0.453,2848.6,2846.6,0.405504]
[1763681892815,0.453,2848.6,2846.7,0.4928]
[1763681892991,0.453,2848.6,2847.0,1.31249664]
[1763681893191,0.453,2848.6,2846.3,0.1458]
[1763681893192,0.453,2848.6,2847.1,0.0982]
[1763681893403,0.453,2848.6,2846.6,0.4928]
[1763681893404,4.008936,2848.5,2846.6,0.4928]
[1763681893609,0.4461936,2848.4,2846.6,0.4928]
[1763681893805,5.019278,2848.4,2846.6,0.4928]
[1763681894019,0.453,2848.3,2846.6,0.4928]
[1763681897424,0.453,2848.3,2846.3,0.1458]
[1763681897425,2.4171,2848.2,2846.3,0.1458]
[1763681897635,9.467342,2848.1,2846.3,0.1458]
[1763681897835,0.9467342,2848.0,2846.3,0.1458]
[1763681898131,0.90699264,2848.3,2846.3,0.1458]
[1763681898353,0.1948,2847.9,2846.3,0.1458]
[1763681898530,0.1948,2847.9,2846.1,0.1458]
[1763681898714,0.453,2847.8,2846.1,0.1458]
[1763681898915,0.1948,2847.9,2846.5,7.41098123]
[1763681899112,0.1948,2847.9,2846.6,0.4928]
[1763681899322,5.060042,2847.7,2846.1,0.1458]
[1763681899515,0.453,2847.8,2846.1,0.1458]
[1763681899516,0.5513042,2847.6,2846.1,0.1458]
[1763681899714,0.453,2847.7,2846.1,0.1458]
[1763681899939,0.453,2847.6,2846.1,0.6386]
[1763681900840,0.453,2847.6,2846.1,0.1458]
[1763681901837,2.510075,2847.5,2846.1,0.1458]
[1763681902010,0.2963075,2847.4,2846.1,0.1458]
[1763681902203,0.453,2847.6,2846.1,0.1458]
[1763681902204,0.453,2847.5,2846.1,0.1458]
[1763681902408,0.453,2847.5,2846.2,0.4928]
[1763681903139,0.1948,2847.9,2846.2,0.4928]
[1763681903342,0.453,2847.8,2846.2,0.4928]
[1763681903718,0.453,2847.8,2846.1,0.1458]
[1763681903910,0.453,2847.8,2846.3,0.4928]
[1763681905358,0.453,2847.8,2846.1,0.1458]
[1763681905747,0.453,2847.8,2846.1,6.77402736]
[1763681908659,0.453,2847.8,2846.1,6.28122736]
[1763681908881,0.453,2847.8,2846.1,6.77402736]
[1763681909363,2.5389,2847.7,2846.2,0.1458]
[1763681909530,0.29919,2847.6,2846.2,0.1458]
[1763681909859,0.75219,2847.6,2846.2,0.1458]
[1763681910065,0.75219,2847.6,2846.1,0.1458]
[1763681910066,2.667199,2847.5,2846.1,0.1458]
[1763681910265,3.120199,2847.5,2846.1,0.1458]
[1763681910433,0.7949389,2847.4,2845.6,0.4928]
[1763681910761,2.92148,2847.3,2845.6,0.4928]
[1763681910961,2.637574,2847.2,2845.4,0.1244]
[1763681911165,5.715852,2847.1,2845.4,0.1244]
[1763681911461,7.714373,2847.0,2845.0,0.6172]
[1763681911660,0.8167373,2846.9,2845.0,0.6172]
[1763681911965,0.6478,2846.9,2845.1,6.62822736]
[1763681912260,0.453,2846.8,2845.1,6.62822736]
[1763681912448,0.453,2846.8,2845.2,0.4928]
[1763681915086,0.453,2846.8,2845.2,1.39979264]
[1763681915489,0.453,2846.8,2845.3,0.4727]
[1763681917674,0.4508,2847.3,2845.6,6.13542736]
[1763681918002,0.002,2847.8,2846.6,6.13542736]
[1763681918003,0.4528,2847.8,2846.6,6.13542736]
[1763681918209,2.26476,2847.7,2846.6,6.13542736]
[1763681918494,2.26476,2847.7,2846.7,0.6185]
[1763681918495,2.0,2847.7,2846.7,0.6185]
[1763681918855,2.0,2847.7,2846.8,0.4647]
[1763681920802,2.0,2847.7,2846.9,6.48022471]
[1763681921193,2.0,2847.7,2846.9,6.94492471]
[1763681924339,2.0,2847.7,2846.7,0.1458]
[1763681924481,0.4807,2847.6,2846.7,0.1458]
[1763681924786,0.4807,2847.6,2846.2,1.37169264]
[1763681924787,0.4807,2847.6,2846.5,0.1458]
[1763681925605,0.5512386,2847.4,2846.5,0.1458]
[1763681926481,0.1858,2846.6,2845.9,0.90699264]
[1763681926681,0.1858,2846.6,2845.3,0.4647]
[1763681926682,0.4965,2846.5,2845.3,0.4647]
[1763681927723,0.1858,2846.6,2845.5,6.48022471]
[1763681927929,0.1858,2846.6,2845.6,0.4647]
[1763681929228,0.1858,2846.9,2845.9,6.48022471]
[1763681929926,0.002,2846.8,2845.5,6.48022471]
[1763681930117,0.002,2846.8,2845.9,0.4647]
[1763681930313,0.002,2846.8,2845.9,6.94492471]
[1763681930702,0.002,2846.8,2846.0,0.6105]
[1763681931194,0.002,2846.8,2846.1,0.4647]
[1763681931933,0.002,2846.8,2846.7,6.94862471]
[1763681932291,0.002,2846.8,2846.7,7.41332471]
[1763681932696,0.002,2846.8,2846.7,0.4684]
[1763681932948,0.9792,2846.8,2845.8,10.34]
[1763681933097,0.328,2846.4,2845.5,0.4647]
[1763681933297,0.328,2846.4,2845.1,6.48022471]
[1763681933499,0.002,2846.8,2845.0,0.5891]
[1763681933500,0.4807,2846.3,2845.0,0.1244]
[1763681933721,0.4807,2846.7,2845.4,6.48022471]
[1763681933940,0.4807,2846.7,2845.3,0.4647]
[1763681934101,0.4807,2846.7,2845.0,6.60462471]
[1763681934102,0.4807,2846.7,2845.0,0.1244]
[1763681934510,0.4807,2846.7,2845.0,0.5891]
[1763681937427,0.4807,2846.7,2844.6,0.4647]
[1763681937627,3.234172,2846.6,2844.6,0.4647]
[1763681937828,0.3714872,2846.5,2844.4,0.001]
[1763681938059,4.714728,2846.3,2844.4,0.001]
[1763681938353,2.187,2846.3,2844.4,0.001]
[1763681938647,0.4807,2846.2,2844.4,0.001]
[1763681940030,2.198,2846.1,2844.4,0.001]
[1763681940230,0.4807,2846.2,2844.6,1.31249664]
[1763681940771,0.4807,2846.2,2844.9,6.14127642]
[1763681940956,0.4807,2846.2,2844.7,0.4647]
[1763681941435,0.4807,2846.2,2844.9,6.14127642]
[1763681941946,0.4807,2846.2,2844.9,6.60597642]
[1763681942737,0.4807,2846.2,2845.0,0.4647]
[1763681942943,0.4807,2846.2,2845.1,0.1244]
[1763681943177,8.14127642,2847.7,2845.4,6.14127642]
[1763681943178,0.4807,2846.6,2845.4,6.14127642]
[1763681945048,2.0,2847.7,2845.9,6.14127642]
[1763681945049,0.4827,2847.1,2845.9,6.14127642]
[1763681945337,0.6665,2846.9,2845.9,6.14127642]
[1763681946783,0.002,2847.1,2846.0,0.870204]
[1763681947228,0.002,2847.1,2846.1,0.6105]
[1763681947429,0.1858,2846.9,2846.1,0.1458]
[1763681947629,0.4807,2846.7,2845.7,0.405504]
[1763681948462,0.1858,2846.9,2845.7,0.870204]
[1763681948967,0.6466,2846.9,2845.9,0.405504]
[1763681949479,0.6466,2846.9,2845.7,0.870604]
[1763681949970,0.6466,2846.9,2845.9,0.405504]
[1763681950998,0.4628,2846.8,2845.9,0.405504]
[1763681954028,0.4642,2846.0,2844.7,0.4651]
[1763681954197,0.4628,2846.8,2844.7,0.4651]
[1763681954198,0.3797,2845.9,2844.7,0.4651]
[1763681954372,0.5718,2845.9,2844.7,0.4651]
[1763681954577,1.0326,2845.9,2844.7,0.4651]
[1763681954776,1.0326,2845.9,2844.7,6.95527554]
[1763681954974,0.5718,2845.9,2844.7,6.95527554]
[1763681955178,0.4608,2845.8,2844.7,6.95527554]
[1763681956395,0.4608,2845.8,2844.4,0.001]
[1763681956600,0.4652,2844.5,2844.4,0.001]
[1763681956972,0.926,2844.5,2844.4,0.001]
[1763681957531,0.6529,2844.5,2843.0,0.125]
[1763681957845,0.1921,2843.1,2843.0,0.125]
[1763681958187,0.6529,2843.1,2843.0,0.125]
[1763681958631,0.6529,2843.1,2841.4,6.49017554]
[1763681958836,0.4608,2843.0,2841.5,0.1941]
[1763681959137,0.4608,2843.0,2841.0,0.47048824]
[1763681959138,0.1921,2843.1,2841.1,2.878]
[1763681959139,0.4608,2841.6,2841.1,2.878]
[1763681959295,0.1921,2842.0,2841.1,2.878]
[1763681959634,0.4608,2841.9,2841.1,2.878]
[1763681961747,0.55218731,2842.7,2841.1,2.878]
[1763681961748,0.1921,2842.3,2841.2,0.6592]
[1763681962034,0.1921,2842.3,2841.1,2.878]
[1763681962216,0.90699264,2842.1,2841.1,2.878]
[1763681962417,1.7470233,2842.0,2841.1,2.878]
[1763681962595,2.15093,2841.8,2841.1,2.878]
[1763681962795,0.4608,2841.9,2841.1,2.878]
[1763681962992,0.4608,2841.8,2841.1,2.878]
[1763681963796,3.17032264,2841.7,2841.1,2.878]
[1763681963991,3.17032264,2841.7,2839.5,6.31910101]
[1763681963992,2.947914,2841.1,2839.5,0.16]
[1763681964204,2.947914,2841.1,2836.5,0.09999999]
[1763681964205,6.35120101,2839.6,2837.4,1.05835971]
[1763681964395,6.35120101,2839.6,2837.4,1.52345971]
[1763681964396,0.90699264,2839.5,2837.4,1.52345971]
[1763681964619,0.597604,2839.6,2837.6,6.15910101]
[1763681964620,0.6529,2839.6,2837.6,6.15910101]
[1763681964932,6.20910101,2841.0,2837.6,6.15910101]
[1763681964933,0.405504,2840.6,2839.5,0.1941]
[1763681965230,0.1921,2840.7,2838.0,7.6711512]
[1763681965231,0.90699264,2840.5,2839.0,0.89394798]
[1763681965432,0.1921,2840.7,2838.9,0.90699264]
[1763681965729,1.73214883,2843.8,2838.9,0.90699264]
[1763681965730,0.4608,2841.3,2839.4,0.90699264]
[1763681965931,0.1921,2842.1,2841.0,0.001]
[1763681966240,0.002,2842.0,2841.2,0.1941]
[1763681966451,0.002,2842.0,2841.3,0.4651]
[1763681966598,0.002,2842.0,2841.4,0.405504]
[1763681966794,0.002,2842.0,2841.5,0.4651]
[1763681967231,0.55217497,2841.9,2841.5,0.4651]
[1763681967901,0.55217497,2841.9,2841.6,1.31249664]
[1763681968098,0.74427497,2841.9,2841.0,0.001]
[1763681968529,0.4608,2841.8,2841.0,0.001]
[1763681968953,0.4608,2841.7,2841.0,0.001]
[1763681969239,0.4209931,2841.6,2841.0,0.001]
[1763681969399,0.4608,2841.7,2841.0,0.001]
[1763681969600,0.4608,2841.6,2841.0,0.001]
[1763681971112,0.74427497,2841.9,2841.1,0.1941]
[1763681971316,0.74427497,2841.9,2841.0,0.001]
[1763681971317,0.6529,2841.9,2841.0,0.001]
[1763681971500,0.4608,2841.8,2841.0,0.001]
[1763681972024,0.002,2842.0,2841.1,0.1941]
[1763681972635,0.1921,2841.9,2841.0,0.001]
[1763681972842,0.002,2842.0,2841.1,0.1941]
[1763681973002,0.002,2842.0,2841.1,0.6592]
[1763681973624,0.002,2842.0,2841.2,0.4651]
[1763681975340,0.002,2842.0,2841.3,0.405504]
[1763681975513,0.002,2842.0,2841.2,0.141494]
[1763681975838,0.002,2842.0,2841.3,7.4770512]
[1763681976415,0.002,2842.0,2841.1,0.1941]
[1763681976939,0.1822,2841.9,2841.1,0.1941]
[1763681977440,0.474,2841.8,2841.0,0.001]
[1763681977641,2.185707,2841.7,2841.0,0.001]
[1763681977847,0.474,2841.8,2841.0,0.001]
[1763681977848,0.2659707,2841.6,2841.0,0.001]
[1763681978051,0.474,2841.7,2841.0,0.001]
[1763681978211,2.878646,2841.7,2841.0,0.001]
[1763681978409,0.461,2841.6,2841.0,0.001]
[1763681978813,2.164,2841.5,2841.0,0.001]
[1763681979008,0.2625,2841.4,2841.0,0.001]
[1763681979252,0.461,2841.3,2841.0,0.001]
[1763681980322,0.6432,2841.9,2841.0,0.001]
[1763681980524,0.1822,2841.9,2841.0,0.001]
[1763681981590,0.6432,2841.9,2841.0,0.001]
[1763681982073,0.461,2841.8,2841.0,0.001]
[1763681984762,0.55236991,2841.7,2841.0,0.001]
[1763681985271,0.461,2841.8,2841.0,0.001]
[1763681985623,0.1822,2841.9,2841.0,0.001]
[1763681986323,0.002,2842.0,2841.0,0.4893]
[1763681986530,0.1914,2841.9,2841.0,0.4893]
[1763681986724,0.1914,2841.9,2841.0,0.001]
[1763681986924,0.461,2841.8,2841.0,0.001]
[1763681988426,0.77789063,2841.8,2841.0,0.001]
[1763681988658,0.461,2841.8,2841.0,0.001]
[1763681988861,0.461,2841.7,2841.0,0.001]
[1763681991247,1.36799264,2841.7,2841.0,0.001]
[1763681991469,7.79392941,2841.8,2839.3,0.1941]
[1763681991470,0.90699264,2841.4,2839.3,0.1941]
[1763681991858,0.77778545,2841.3,2839.3,0.6834]
[1763681992188,0.461,2841.3,2839.3,0.6834]
[1763681992361,0.461,2841.2,2839.4,0.4893]
[1763681992964,0.49904018,2841.5,2839.8,1.31249664]
[1763681993297,0.463,2842.0,2839.8,1.31249664]
[1763681993451,0.463,2842.0,2840.0,0.405504]
[1763681993452,0.002,2842.0,2840.0,0.405504]
[1763681993854,0.6524,2841.9,2840.1,0.4893]
[1763681994285,0.461,2841.8,2840.1,0.4893]
[1763681994799,0.461,2841.8,2839.8,0.405504]
[1763681994969,0.461,2841.8,2839.8,0.4893]
[1763681995283,0.90699264,2841.6,2839.5,0.4893]
[1763681995451,0.68373801,2841.5,2839.5,0.4893]
[1763681995656,0.461,2841.4,2839.5,0.4893]
[1763681995961,0.77810875,2841.4,2839.5,0.4893]
[1763681996146,0.31710875,2841.3,2839.6,0.03521622]
[1763681996346,0.77810875,2841.3,2839.7,0.4893]
[1763681996581,0.461,2841.3,2839.7,0.4893]
[1763681996883,0.461,2841.2,2839.7,0.4893]
[1763681997058,0.77804295,2841.8,2839.8,0.405504]
[1763681997459,0.461,2841.8,2840.0,0.405504]
[1763681997883,0.461,2841.8,2840.2,0.405504]
[1763681998377,0.55238401,2841.5,2840.3,0.4893]
[1763681998880,0.461,2841.8,2840.3,0.4893]
[1763681999686,0.1914,2841.9,2840.4,0.405504]
[1763682000091,0.461,2842.2,2840.6,0.405504]
[1763682000484,0.461,2842.2,2840.8,0.405504]
[1763682000697,0.461,2842.6,2841.0,0.405504]
[1763682001006,0.77867332,2842.6,2841.0,0.405504]
[1763682001211,0.6524,2841.9,2839.4,0.3417063]
[1763682001410,0.31753649,2841.8,2839.5,0.4893]
[1763682001576,0.77853649,2841.8,2839.5,0.4893]
[1763682001777,0.77853649,2841.8,2839.6,0.90699264]
[1763682001974,0.461,2841.7,2839.7,0.4893]
[1763682002876,0.461,2841.7,2839.8,0.405504]
[1763682003105,0.461,2841.7,2839.7,0.4893]
[1763682004078,0.461,2841.7,2839.8,0.405504]
[1763682004504,0.461,2841.7,2839.9,0.4893]
[1763682005076,0.461,2841.7,2839.8,0.4893]
[1763682005282,0.461,2841.7,2839.8,0.405504]
[1763682005477,0.461,2841.7,2840.0,0.405504]
[1763682005794,0.461,2841.7,2840.0,0.894804]
[1763682005991,2.3963,2841.6,2839.3,0.1951]
[1763682006191,0.60346942,2841.5,2839.6,0.4893]
[1763682006401,0.31773942,2841.4,2839.6,0.4893]
[1763682006718,0.90699264,2841.3,2839.3,0.1951]
[1763682006902,2.837334,2841.1,2839.3,0.1951]
[1763682007111,0.31773942,2841.0,2839.3,0.6844]
[1763682007306,0.77873942,2841.1,2839.3,0.6844]
[1763682007549,0.77873942,2841.1,2839.4,0.5245187]
[1763682007550,0.461,2841.1,2839.4,0.5245187]
[1763682007859,0.461,2841.5,2839.7,7.4770512]
[1763682008007,0.002,2841.8,2839.9,0.405504]
[1763682008207,0.05,2844.1,2839.9,0.405504]
[1763682008208,0.1914,2843.8,2841.7,7.5781512]
[1763682008428,0.1914,2843.8,2842.6,0.1941]